[Event "44th Chess Olympiad Women 2022"]
[Site "Chennai"]
[Date "2022.07.31"]
[Round "3.58"]
[White "Gusmao, Maria do Ceu"]
[Black "Rakotoniaina Tiana Johanna"]
[Result "0-1"]
[WhiteElo "1442"]
[BlackElo "1529"]
[Annotator "NA RC"]
[PlyCount "93"]
[EventDate "2022.??.??"]
[TimeControl "60"]

1. c4 {[%emt 0:00:03]} e5 {[%emt 0:01:27]} 2. Nc3 {[%emt 0:00:14]} Nf6 {
[%emt 0:00:18]} 3. e4 {[%emt 0:01:59]} Bc5 {[%emt 0:01:31]} 4. Nf3 {[%emt 0:00:
00]} Nc6 {[%emt 0:01:46]} 5. h3 {[%emt 0:04:16]} b6 {[%emt 0:01:15]} 6. Nxe5 {
[%emt 0:03:40]} Bxf2+ {[%emt 0:06:44]} 7. Kxf2 {[%emt 0:04:31]} Nxe5 {[%emt 0:
00:00]} 8. d4 {[%emt 0:02:15]} Ng6 {[%emt 0:03:02]} 9. Be2 {[%emt 0:06:28]} Bb7
{[%emt 0:00:53]} 10. d5 {[%emt 0:05:25]} Qe7 {[%emt 0:02:33]} 11. Qc2 {[%emt 0:
00:00]} Qe5 {[%emt 0:03:22]} 12. Rf1 {[%emt 0:11:36]} O-O {[%emt 0:03:09]} 13.
g3 {[%emt 0:04:49]} c6 {[%emt 0:01:47]} 14. Bf3 {[%emt 0:04:10]} cxd5 {[%emt 0:
00:00]} 15. cxd5 {[%emt 0:03:37]} h5 {[%emt 0:04:03]} 16. Rg1 {[%emt 0:14:56]}
Rfc8 {[%emt 0:12:14]} 17. Be3 {[%emt 0:07:34]} Rc4 {[%emt 0:11:53]} 18. Rad1 {
[%emt 0:01:51]} d6 {[%emt 0:01:39]} 19. Qd2 {[%emt 0:01:27]} Rac8 {[%emt 0:00:
00]} 20. Bd4 {[%emt 0:02:43]} Qe7 {[%emt 0:05:42]} 21. Bxf6 {[%emt 0:03:27]}
Qxf6 {[%emt 0:00:25]} 22. Kg2 {[%emt 0:01:53]} h4 {[%emt 0:03:16]} 23. Kh2 {
[%emt 0:01:40]} Qxf3 {[%emt 0:01:55]} 24. gxh4 {[%emt 0:01:23]} Qf4+ {[%emt 0:
00:00]} 25. Qxf4 {[%emt 0:00:34]} Nxf4 {[%emt 0:00:08]} 26. Rg4 {[%emt 0:00:43]
} Nh5 {[%emt 0:00:27]} 27. Rdg1 {[%emt 0:00:53]} g6 {[%emt 0:01:47]} 28. Kh1 {
[%emt 0:00:14]} Re8 {[%emt 0:00:31]} 29. Nb5 {[%emt 0:00:21]} Rcxe4 {[%emt 0:
00:00]} 30. Rxe4 {[%emt 0:00:13]} Rxe4 {[%emt 0:01:55]} 31. Nxd6 {[%emt 0:00:
00]} Re7 {[%emt 0:00:56]} 32. Nxb7 {[%emt 0:00:31]} Rxb7 {[%emt 0:00:08]} 33.
Rd1 {[%emt 0:00:52]} Rd7 {[%emt 0:00:10]} 34. Kh2 {[%emt 0:00:15]} Nf4 {
[%emt 0:00:11]} 35. d6 {[%emt 0:00:08]} Kg7 {[%emt 0:00:34]} 36. Kg3 {[%emt 0:
00:00]} Ne6 {[%emt 0:00:35]} 37. Kf3 {[%emt 0:00:49]} Kf6 {[%emt 0:00:05]} 38.
Ke4 {[%emt 0:00:11]} Nd8 {[%emt 0:00:46]} 39. Rd5 {[%emt 0:00:31]} Nc6 {
[%emt 0:00:58]} 40. a3 {[%emt 0:00:27]} Ke6 {[%emt 0:00:53]} 41. h5 {[%emt 0:
00:00]} f5+ {[%emt 0:30:26]} 42. Rxf5 {[%emt 0:00:25]} gxf5+ {[%emt 0:00:09]}
43. Kf4 {[%emt 0:00:02]} Kf6 {[%emt 0:00:46]} 44. h6 {[%emt 0:00:27]} Rh7 {
[%emt 0:00:12]} 45. b4 {[%emt 0:00:13]} b5 {[%emt 0:00:11]} 46. a4 {[%emt 0:00:
00]} a6 {[%emt 0:01:24]} 47. axb5 {[%emt 0:02:47]} 0-1

[Event "44th Chess Olympiad Women 2022"]
[Site "Chennai"]
[Date "2022.07.31"]
[Round "3.58"]
[White "Razafindrabe, Bakoly"]
[Black "dos Santos, Elfiana"]
[Result "1/2-1/2"]
[WhiteElo "1238"]
[BlackElo "1560"]
[Annotator "NA"]
[PlyCount "82"]
[EventDate "2022.??.??"]
[TimeControl "60"]

1. e4 {[%emt 0:00:07]} e5 {[%emt 0:00:26]} 2. Nf3 {[%emt 0:01:54]} Nc6 {
[%emt 0:00:29]} 3. Bc4 {[%emt 0:00:32]} h6 {[%emt 0:02:55]} 4. c3 {[%emt 0:00:
00]} Bc5 {[%emt 0:00:57]} 5. O-O {[%emt 0:00:50]} Nf6 {[%emt 0:01:19]} 6. d4 {
[%emt 0:03:55]} exd4 {[%emt 0:02:37]} 7. cxd4 {[%emt 0:00:22]} Be7 {[%emt 0:00:
00]} 8. Nc3 {[%emt 0:00:49]} O-O {[%emt 0:00:22]} 9. Be3 {[%emt 0:02:26]} d6 {
[%emt 0:04:12]} 10. h3 {[%emt 0:02:49]} Na5 {[%emt 0:03:51]} 11. Bb3 {[%emt 0:
00:00]} Nxb3 {[%emt 0:01:57]} 12. Qxb3 {[%emt 0:00:33]} c6 {[%emt 0:03:47]} 13.
a4 {[%emt 0:06:16]} b6 {[%emt 0:08:13]} 14. Rac1 {[%emt 0:03:26]} Bd7 {[%emt 0:
00:00]} 15. e5 {[%emt 0:18:31]} Nh7 {[%emt 0:01:14]} 16. d5 {[%emt 0:11:05]}
Ng5 {[%emt 0:02:19]} 17. Nxg5 {[%emt 0:00:48]} Bxg5 {[%emt 0:00:29]} 18. Bxg5 {
[%emt 0:00:20]} Qxg5 {[%emt 0:00:13]} 19. e6 {[%emt 0:01:16]} Bc8 {[%emt 0:00:
00]} 20. Ne4 {[%emt 0:01:26]} Qe7 {[%emt 0:08:05]} 21. exf7+ {[%emt 0:06:28]}
Rxf7 {[%emt 0:00:57]} 22. Rfe1 {[%emt 0:00:26]} Qd7 {[%emt 0:03:37]} 23. dxc6 {
[%emt 0:03:40]} Qf5 {[%emt 0:11:48]} 24. f3 {[%emt 0:03:17]} Qg6 {[%emt 0:00:
00]} 25. Kh1 {[%emt 0:02:06]} Kh7 {[%emt 0:02:25]} 26. Qd5 {[%emt 0:01:41]} Bf5
{[%emt 0:05:32]} 27. Nxd6 {[%emt 0:03:48]} Rf6 {[%emt 0:00:59]} 28. Nxf5 {
[%emt 0:01:02]} Rxf5 {[%emt 0:00:42]} 29. Qe6 {[%emt 0:00:36]} Rf6 {[%emt 0:00:
00]} 30. Qe4 {[%emt 0:00:38]} Rf5 {[%emt 0:00:34]} 31. c7 {[%emt 0:00:39]} Rc8
{[%emt 0:00:15]} 32. Rc6 {[%emt 0:01:36]} Qf7 {[%emt 0:02:08]} 33. Qe7 {
[%emt 0:00:44]} Qd5 {[%emt 0:01:51]} 34. Rce6 {[%emt 0:01:07]} Rxf3 {[%emt 0:
00:00]} 35. gxf3 {[%emt 0:01:11]} Qxf3+ {[%emt 0:00:02]} 36. Kh2 {[%emt 0:00:
00]} Qf2+ {[%emt 0:00:15]} 37. Kh1 {[%emt 0:00:25]} Qf3+ {[%emt 0:00:08]} 38.
Kg1 {[%emt 0:00:24]} Qg3+ {[%emt 0:00:29]} 39. Kf1 {[%emt 0:00:44]} Qf3+ {
[%emt 0:00:09]} 40. Kg1 {[%emt 0:00:46]} Qg3+ {[%emt 0:00:01]} 41. Kf1 {
[%emt 0:00:13]} Qf3+ {[%emt 0:30:30]} 1/2-1/2

[Event "44th Chess Olympiad Women 2022"]
[Site "Chennai"]
[Date "2022.07.31"]
[Round "3.58"]
[White "Razafindrabiaza, Christine"]
[Black "da Silva, Sonizia A.Tilman"]
[Result "1-0"]
[WhiteElo "1635"]
[BlackElo "1507"]
[Annotator "NA RC"]
[PlyCount "61"]
[EventDate "2022.??.??"]
[TimeControl "60"]

1. d4 {[%emt 0:00:19]} Nf6 {[%emt 0:00:15]} 2. Nf3 {[%emt 0:00:23]} d5 {
[%emt 0:00:55]} 3. e3 {[%emt 0:00:41]} Bf5 {[%emt 0:00:26]} 4. Bd3 {[%emt 0:00:
00]} Ne4 {[%emt 0:01:24]} 5. O-O {[%emt 0:00:25]} e6 {[%emt 0:00:43]} 6. c4 {
[%emt 0:01:26]} dxc4 {[%emt 0:02:27]} 7. Bxc4 {[%emt 0:00:23]} Bg4 {[%emt 0:00:
00]} 8. Be2 {[%emt 0:01:45]} Nc6 {[%emt 0:03:11]} 9. Nbd2 {[%emt 0:01:11]} Qd5
{[%emt 0:02:49]} 10. Bc4 {[%emt 0:03:43]} Qf5 {[%emt 0:02:01]} 11. Bd3 {
[%emt 0:07:02]} Bxf3 {[%emt 0:05:32]} 12. Nxf3 {[%emt 0:01:49]} Bd6 {[%emt 0:
00:00]} 13. a3 {[%emt 0:02:21]} g5 {[%emt 0:04:59]} 14. Qc2 {[%emt 0:00:57]} g4
{[%emt 0:03:31]} 15. Bxe4 {[%emt 0:02:23]} Qh5 {[%emt 0:01:19]} 16. Bxc6+ {
[%emt 0:00:17]} bxc6 {[%emt 0:01:03]} 17. Qxc6+ {[%emt 0:00:24]} Ke7 {[%emt 0:
00:00]} 18. Ne5 {[%emt 0:00:17]} Rad8 {[%emt 0:01:45]} 19. g3 {[%emt 0:01:58]}
f6 {[%emt 0:03:26]} 20. Nc4 {[%emt 0:00:28]} Qg6 {[%emt 0:03:29]} 21. Nxd6 {
[%emt 0:00:24]} cxd6 {[%emt 0:00:38]} 22. Bd2 {[%emt 0:00:52]} h5 {[%emt 0:00:
00]} 23. e4 {[%emt 0:03:53]} h4 {[%emt 0:03:09]} 24. e5 {[%emt 0:00:21]} Qd3 {
[%emt 0:08:14]} 25. exd6+ {[%emt 0:02:42]} Kf7 {[%emt 0:01:11]} 26. Bf4 {
[%emt 0:04:42]} Qxd4 {[%emt 0:03:35]} 27. Rad1 {[%emt 0:00:27]} Qxb2 {[%emt 0:
00:00]} 28. Rb1 {[%emt 0:00:19]} Qxa3 {[%emt 0:01:46]} 29. Rb7+ {[%emt 0:00:13]
} Kg6 {[%emt 0:01:20]} 30. Qe4+ {[%emt 0:02:20]} Kh5 {[%emt 0:04:11]} 31. Rh7+
{[%emt 0:00:44]} 1-0

[Event "44th Chess Olympiad Women 2022"]
[Site "Chennai"]
[Date "2022.07.31"]
[Round "3.58"]
[White "Tilman, Zulmira Americo"]
[Black "Raharimanana, Faratiana"]
[Result "0-1"]
[WhiteElo "1255"]
[BlackElo "1707"]
[Annotator "NA RC"]
[PlyCount "96"]
[EventDate "2022.??.??"]
[TimeControl "60"]

1. d4 {[%emt 0:00:04]} Nf6 {[%emt 0:00:15]} 2. c4 {[%emt 0:00:33]} e6 {[%emt 0:
00:00]} 3. Nc3 {[%emt 0:00:20]} Bb4 {[%emt 0:00:25]} 4. Nf3 {[%emt 0:00:21]} b6
{[%emt 0:00:47]} 5. Bd2 {[%emt 0:00:30]} Bb7 {[%emt 0:00:26]} 6. e3 {[%emt 0:
00:00]} O-O {[%emt 0:00:36]} 7. Bd3 {[%emt 0:03:08]} d5 {[%emt 0:00:59]} 8.
cxd5 {[%emt 0:01:49]} exd5 {[%emt 0:01:22]} 9. O-O {[%emt 0:00:12]} c5 {
[%emt 0:01:32]} 10. a3 {[%emt 0:03:02]} Bxc3 {[%emt 0:02:14]} 11. bxc3 {
[%emt 0:00:05]} Nbd7 {[%emt 0:01:32]} 12. Qc2 {[%emt 0:04:56]} h6 {[%emt 0:00:
00]} 13. h3 {[%emt 0:08:48]} Rc8 {[%emt 0:01:32]} 14. Qb1 {[%emt 0:05:11]} Re8
{[%emt 0:02:04]} 15. Qd1 {[%emt 0:03:26]} a6 {[%emt 0:07:09]} 16. a4 {[%emt 0:
00:00]} Ne4 {[%emt 0:03:49]} 17. Rb1 {[%emt 0:03:36]} Qc7 {[%emt 0:12:03]} 18.
Nh4 {[%emt 0:05:32]} Qd6 {[%emt 0:05:19]} 19. f3 {[%emt 0:05:12]} Ng3 {[%emt 0:
00:00]} 20. Re1 {[%emt 0:04:55]} Qf6 {[%emt 0:00:31]} 21. f4 {[%emt 0:01:59]}
Qxh4 {[%emt 0:01:43]} 22. Qf3 {[%emt 0:01:42]} Ne4 {[%emt 0:00:49]} 23. Bxe4 {
[%emt 0:02:55]} dxe4 {[%emt 0:00:25]} 24. Qe2 {[%emt 0:01:51]} Qf6 {[%emt 0:00:
00]} 25. a5 {[%emt 0:01:15]} b5 {[%emt 0:00:37]} 26. c4 {[%emt 0:04:19]} cxd4 {
[%emt 0:02:50]} 27. cxb5 {[%emt 0:00:34]} axb5 {[%emt 0:00:37]} 28. Qxb5 {
[%emt 0:01:33]} Bc6 {[%emt 0:01:07]} 29. Qe2 {[%emt 0:07:57]} d3 {[%emt 0:00:
00]} 30. Qf2 {[%emt 0:01:24]} Bd5 {[%emt 0:05:02]} 31. Bb4 {[%emt 0:01:51]} Rc2
{[%emt 0:00:17]} 32. Qf1 {[%emt 0:01:07]} Bc4 {[%emt 0:00:57]} 33. Rbc1 {
[%emt 0:01:56]} d2 {[%emt 0:01:12]} 34. Rxc2 {[%emt 0:04:09]} Bxf1 {[%emt 0:00:
00]} 35. Rxf1 {[%emt 0:00:46]} Qa6 {[%emt 0:07:32]} 36. Rxd2 {[%emt 0:02:26]}
Nf6 {[%emt 0:01:09]} 37. g4 {[%emt 0:00:57]} Rc8 {[%emt 0:05:01]} 38. g5 {
[%emt 0:03:44]} Ne8 {[%emt 0:04:08]} 39. gxh6 {[%emt 0:00:29]} Qxh6 {[%emt 0:
00:00]} 40. Kh2 {[%emt 0:03:14]} Nf6 {[%emt 0:01:32]} 41. Rg2 {[%emt 0:31:17]}
Nd5 {[%emt 0:31:51]} 42. Bd2 {[%emt 0:01:26]} Rc6 {[%emt 0:02:18]} 43. Bc1 {
[%emt 0:03:48]} Rg6 {[%emt 0:02:51]} 44. f5 {[%emt 0:02:31]} Rxg2+ {[%emt 0:00:
00]} 45. Kxg2 {[%emt 0:00:09]} Nxe3+ {[%emt 0:00:25]} 46. Bxe3 {[%emt 0:00:05]}
Qxe3 {[%emt 0:00:22]} 47. Ra1 {[%emt 0:00:33]} Qd2+ {[%emt 0:01:32]} 48. Kg3 {
[%emt 0:00:29]} Qd8 {[%emt 0:00:08]} 0-1

[Event "44th Chess Olympiad Women 2022"]
[Site "Chennai"]
[Date "2022.07.31"]
[Round "3.60"]
[White "Elfelo, Eklas"]
[Black "Tchouateu Tankeu Stephanie"]
[Result "1-0"]
[WhiteElo "1562"]
[BlackElo "1280"]
[Annotator "NA RC"]
[PlyCount "117"]
[EventDate "2022.??.??"]
[TimeControl "60"]

1. e4 {[%emt 0:00:03]} e5 {[%emt 0:00:09]} 2. Nf3 {[%emt 0:00:05]} Nc6 {
[%emt 0:00:13]} 3. Bc4 {[%emt 0:00:08]} Nf6 {[%emt 0:00:29]} 4. Nc3 {[%emt 0:
00:00]} Bc5 {[%emt 0:00:16]} 5. O-O {[%emt 0:00:15]} O-O {[%emt 0:00:09]} 6. h3
{[%emt 0:00:21]} b6 {[%emt 0:01:46]} 7. b3 {[%emt 0:02:11]} Bb7 {[%emt 0:00:57]
} 8. Bb2 {[%emt 0:00:34]} Re8 {[%emt 0:03:54]} 9. Re1 {[%emt 0:00:18]} d6 {
[%emt 0:07:31]} 10. Ng5 {[%emt 0:13:04]} d5 {[%emt 0:04:34]} 11. exd5 {[%emt 0:
00:00]} Nd4 {[%emt 0:20:42]} 12. Nce4 {[%emt 0:38:29]} h6 {[%emt 0:15:25]} 13.
Nf3 {[%emt 0:07:11]} Nxe4 {[%emt 0:08:39]} 14. Rxe4 {[%emt 0:02:01]} Bxd5 {
[%emt 0:00:12]} 15. Bxd5 {[%emt 0:00:32]} Qxd5 {[%emt 0:00:10]} 16. d3 {
[%emt 0:02:58]} Qd6 {[%emt 0:11:46]} 17. c3 {[%emt 0:01:23]} Nf5 {[%emt 0:00:
00]} 18. Qd2 {[%emt 0:06:14]} Rad8 {[%emt 0:03:24]} 19. d4 {[%emt 0:02:02]}
exd4 {[%emt 0:01:06]} 20. Rxe8+ {[%emt 0:00:10]} Rxe8 {[%emt 0:00:10]} 21. cxd4
{[%emt 0:00:40]} Bb4 {[%emt 0:04:37]} 22. Qd3 {[%emt 0:01:14]} Qf4 {[%emt 0:00:
00]} 23. a3 {[%emt 0:00:51]} Bd6 {[%emt 0:00:23]} 24. Bc1 {[%emt 0:02:05]} Re1+
{[%emt 0:01:18]} 25. Nxe1 {[%emt 0:02:48]} Qxd4 {[%emt 0:03:19]} 26. Qxd4 {
[%emt 0:00:34]} Nxd4 {[%emt 0:00:06]} 27. Rb1 {[%emt 0:01:34]} a5 {[%emt 0:00:
00]} 28. a4 {[%emt 0:01:06]} c6 {[%emt 0:01:07]} 29. Be3 {[%emt 0:00:11]} c5 {
[%emt 0:00:59]} 30. Rd1 {[%emt 0:01:06]} Be5 {[%emt 0:00:58]} 31. Bxd4 {
[%emt 0:00:47]} cxd4 {[%emt 0:00:26]} 32. Nf3 {[%emt 0:00:16]} f6 {[%emt 0:00:
00]} 33. g4 {[%emt 0:00:26]} Kf7 {[%emt 0:00:24]} 34. h4 {[%emt 0:00:23]} g5 {
[%emt 0:00:58]} 35. h5 {[%emt 0:00:20]} Ke6 {[%emt 0:00:10]} 36. Kf1 {[%emt 0:
00:00]} f5 {[%emt 0:01:00]} 37. gxf5+ {[%emt 0:01:14]} Kxf5 {[%emt 0:00:08]}
38. Nxd4+ {[%emt 0:00:10]} Bxd4 {[%emt 0:00:19]} 39. Rxd4 {[%emt 0:00:06]} Ke5
{[%emt 0:00:08]} 40. Rc4 {[%emt 0:00:12]} Kf5 {[%emt 0:00:42]} 41. f3 {[%emt 0:
00:00]} Kf6 {[%emt 0:30:40]} 42. Ke2 {[%emt 0:00:09]} Ke6 {[%emt 0:00:00]} 43.
Ke3 {[%emt 0:00:00]} Kf5 {[%emt 0:00:00]} 44. Rc6 {[%emt 0:00:00]} g4 {[%emt 0:
00:00]} 45. fxg4+ {[%emt 0:00:00]} Kxg4 {[%emt 0:00:00]} 46. Rxh6 {[%emt 0:00:
00]} Kg5 {[%emt 0:00:00]} 47. Rxb6 {[%emt 0:00:00]} Kxh5 {[%emt 0:00:00]} 48.
Rb5+ {[%emt 0:00:00]} Kg6 {[%emt 0:00:00]} 49. Rxa5 {[%emt 0:00:00]} Kf6 {
[%emt 0:00:00]} 50. Ke4 {[%emt 0:00:00]} Ke6 {[%emt 0:00:00]} 51. Ra6+ {
[%emt 0:00:00]} Kd7 {[%emt 0:00:00]} 52. a5 {[%emt 0:00:00]} Kc7 {[%emt 0:00:
00]} 53. Rh6 {[%emt 0:00:00]} Kb7 {[%emt 0:00:00]} 54. a6+ {[%emt 0:00:00]} Ka7
{[%emt 0:00:00]} 55. b4 {[%emt 0:00:00]} Kb8 {[%emt 0:00:00]} 56. Rh7 {[%emt 0:
00:00]} Ka8 {[%emt 0:00:00]} 57. b5 {[%emt 0:00:00]} Kb8 {[%emt 0:00:00]} 58.
b6 {[%emt 0:00:00]} Ka8 {[%emt 0:00:00]} 59. Rh8# {[%emt 0:00:00]} 1-0

[Event "44th Chess Olympiad Women 2022"]
[Site "Chennai"]
[Date "2022.07.31"]
[Round "3.61"]
[White "Mpinganjira, Ellen"]
[Black "Pinder, Trinity"]
[Result "1/2-1/2"]
[WhiteElo "1334"]
[BlackElo "1183"]
[Annotator "NA"]
[PlyCount "136"]
[EventDate "2022.??.??"]
[TimeControl "60"]

1. e4 {[%emt 0:00:07]} c5 {[%emt 0:00:10]} 2. Nf3 {[%emt 0:00:32]} e6 {[%emt 0:
00:00]} 3. Nc3 {[%emt 0:02:46]} Nc6 {[%emt 0:00:32]} 4. Bb5 {[%emt 0:01:23]} a6
{[%emt 0:00:36]} 5. Bxc6 {[%emt 0:00:09]} bxc6 {[%emt 0:00:18]} 6. d4 {[%emt 0:
00:00]} cxd4 {[%emt 0:00:33]} 7. Qxd4 {[%emt 0:01:50]} c5 {[%emt 0:02:24]} 8.
Qd1 {[%emt 0:03:33]} Bb7 {[%emt 0:03:28]} 9. O-O {[%emt 0:00:55]} Nf6 {[%emt 0:
00:00]} 10. Re1 {[%emt 0:01:24]} Be7 {[%emt 0:01:01]} 11. h3 {[%emt 0:03:27]}
O-O {[%emt 0:01:04]} 12. Bg5 {[%emt 0:01:55]} d6 {[%emt 0:01:41]} 13. Nh2 {
[%emt 0:11:23]} h6 {[%emt 0:00:44]} 14. Bh4 {[%emt 0:00:32]} d5 {[%emt 0:08:06]
} 15. e5 {[%emt 0:05:01]} Ne4 {[%emt 0:03:27]} 16. Nxe4 {[%emt 0:04:38]} dxe4 {
[%emt 0:00:28]} 17. Bxe7 {[%emt 0:03:24]} Qxe7 {[%emt 0:00:31]} 18. Qh5 {
[%emt 0:01:43]} Kh7 {[%emt 0:05:31]} 19. Nf1 {[%emt 0:02:44]} Qg5 {[%emt 0:00:
00]} 20. Qxg5 {[%emt 0:00:24]} hxg5 {[%emt 0:00:06]} 21. Nd2 {[%emt 0:00:09]}
Rad8 {[%emt 0:02:45]} 22. Nxe4 {[%emt 0:00:29]} Bxe4 {[%emt 0:00:07]} 23. Rxe4
{[%emt 0:00:12]} Rd5 {[%emt 0:00:50]} 24. Rae1 {[%emt 0:04:51]} Rb8 {[%emt 0:
00:00]} 25. b3 {[%emt 0:00:33]} Rb4 {[%emt 0:00:19]} 26. c3 {[%emt 0:02:11]}
Rxe4 {[%emt 0:02:00]} 27. Rxe4 {[%emt 0:00:11]} Rd1+ {[%emt 0:00:09]} 28. Kh2 {
[%emt 0:00:10]} Rd2 {[%emt 0:01:31]} 29. f3 {[%emt 0:15:02]} Rxa2 {[%emt 0:00:
00]} 30. Rc4 {[%emt 0:03:26]} Ra3 {[%emt 0:01:03]} 31. Rxc5 {[%emt 0:02:14]}
Rxb3 {[%emt 0:00:20]} 32. Kg3 {[%emt 0:01:52]} Kg6 {[%emt 0:01:57]} 33. c4 {
[%emt 0:03:44]} Kf5 {[%emt 0:00:52]} 34. Ra5 {[%emt 0:02:25]} Rc3 {[%emt 0:00:
00]} 35. Rxa6 {[%emt 0:03:31]} Rxc4 {[%emt 0:00:13]} 36. Ra7 {[%emt 0:01:34]}
Kg6 {[%emt 0:00:18]} 37. Ra5 {[%emt 0:00:17]} Rd4 {[%emt 0:01:23]} 38. Kf2 {
[%emt 0:01:50]} Rd5 {[%emt 0:02:18]} 39. Rxd5 {[%emt 0:00:48]} exd5 {[%emt 0:
00:00]} 40. Ke3 {[%emt 0:00:04]} Kf5 {[%emt 0:02:06]} 41. Kd4 {[%emt 0:30:15]}
Ke6 {[%emt 0:30:09]} 42. g3 {[%emt 0:00:30]} g6 {[%emt 0:00:47]} 43. g4 {
[%emt 0:00:59]} Ke7 {[%emt 0:00:52]} 44. Kxd5 {[%emt 0:00:12]} Kd7 {[%emt 0:00:
00]} 45. Ke4 {[%emt 0:00:26]} Ke6 {[%emt 0:00:28]} 46. f4 {[%emt 0:00:46]} gxf4
{[%emt 0:00:32]} 47. Kxf4 {[%emt 0:00:07]} f6 {[%emt 0:00:09]} 48. exf6 {
[%emt 0:00:09]} Kxf6 {[%emt 0:00:24]} 49. h4 {[%emt 0:00:34]} Kg7 {[%emt 0:00:
00]} 50. Kg5 {[%emt 0:01:10]} Kh7 {[%emt 0:01:12]} 51. h5 {[%emt 0:00:28]} Kg7
{[%emt 0:01:52]} 52. hxg6 {[%emt 0:00:20]} Kg8 {[%emt 0:00:11]} 53. Kf6 {
[%emt 0:00:11]} Kf8 {[%emt 0:00:21]} 54. g7+ {[%emt 0:00:18]} Kg8 {[%emt 0:00:
00]} 55. g5 {[%emt 0:00:44]} Kh7 {[%emt 0:00:24]} 56. Kf5 {[%emt 0:01:23]} Kxg7
{[%emt 0:00:19]} 57. Kg4 {[%emt 0:00:06]} Kg6 {[%emt 0:00:08]} 58. Kh4 {
[%emt 0:00:13]} Kg7 {[%emt 0:00:13]} 59. Kh5 {[%emt 0:00:03]} Kh7 {[%emt 0:00:
00]} 60. g6+ {[%emt 0:00:32]} Kg7 {[%emt 0:00:11]} 61. Kg5 {[%emt 0:00:09]} Kg8
{[%emt 0:00:24]} 62. Kf6 {[%emt 0:00:23]} Kf8 {[%emt 0:00:08]} 63. Kg5 {
[%emt 0:01:35]} Kg7 {[%emt 0:00:12]} 64. Kh5 {[%emt 0:00:11]} Kg8 {[%emt 0:00:
00]} 65. Kh6 {[%emt 0:00:15]} Kh8 {[%emt 0:00:16]} 66. Kg5 {[%emt 0:03:43]} Kg7
{[%emt 0:00:16]} 67. Kf5 {[%emt 0:00:07]} Kg8 {[%emt 0:00:15]} 68. Kf6 {
[%emt 0:00:02]} Kf8 {[%emt 0:00:09]} 1/2-1/2

[Event "44th Chess Olympiad Women 2022"]
[Site "Chennai"]
[Date "2022.07.31"]
[Round "3.61"]
[White "Msukwa, Tupokiwe"]
[Black "Johnson, Daijah"]
[Result "1-0"]
[WhiteElo "1369"]
[BlackElo "1480"]
[Annotator "NA"]
[PlyCount "91"]
[EventDate "2022.??.??"]
[TimeControl "60"]

1. d4 {[%emt 0:00:04]} Nf6 {[%emt 0:00:06]} 2. c4 {[%emt 0:00:02]} g6 {[%emt 0:
00:00]} 3. Nc3 {[%emt 0:00:50]} Bg7 {[%emt 0:00:15]} 4. e4 {[%emt 0:00:12]} d6
{[%emt 0:00:19]} 5. Be2 {[%emt 0:00:44]} O-O {[%emt 0:01:21]} 6. Nf3 {[%emt 0:
00:00]} Nbd7 {[%emt 0:01:50]} 7. O-O {[%emt 0:01:46]} e5 {[%emt 0:03:18]} 8. d5
{[%emt 0:00:40]} Nc5 {[%emt 0:02:52]} 9. Qc2 {[%emt 0:00:26]} Qe7 {[%emt 0:00:
00]} 10. h3 {[%emt 0:03:54]} c6 {[%emt 0:06:27]} 11. Bg5 {[%emt 0:03:18]} h6 {
[%emt 0:02:54]} 12. Be3 {[%emt 0:00:27]} cxd5 {[%emt 0:01:14]} 13. cxd5 {
[%emt 0:01:05]} b6 {[%emt 0:00:58]} 14. b4 {[%emt 0:01:44]} Na6 {[%emt 0:05:34]
} 15. a3 {[%emt 0:01:02]} Bb7 {[%emt 0:01:42]} 16. Rac1 {[%emt 0:04:30]} Rac8 {
[%emt 0:01:47]} 17. Qd2 {[%emt 0:00:14]} Nc7 {[%emt 0:14:59]} 18. Bxh6 {
[%emt 0:00:42]} Nh7 {[%emt 0:02:51]} 19. Bxg7 {[%emt 0:02:03]} Kxg7 {[%emt 0:
00:00]} 20. Rc2 {[%emt 0:02:25]} Ne8 {[%emt 0:03:10]} 21. Bd3 {[%emt 0:03:49]}
Nef6 {[%emt 0:03:07]} 22. Ng5 {[%emt 0:04:42]} Rh8 {[%emt 0:01:34]} 23. Nxh7 {
[%emt 0:01:34]} Rxh7 {[%emt 0:01:02]} 24. Ne2 {[%emt 0:01:19]} Rch8 {[%emt 0:
00:00]} 25. Rfc1 {[%emt 0:05:37]} Ne8 {[%emt 0:05:42]} 26. Ng3 {[%emt 0:01:32]}
Qf6 {[%emt 0:06:12]} 27. Bb5 {[%emt 0:10:33]} Kf8 {[%emt 0:02:53]} 28. Rc3 {
[%emt 0:04:48]} g5 {[%emt 0:02:33]} 29. Rf3 {[%emt 0:03:12]} Qg6 {[%emt 0:00:
00]} 30. Bd7 {[%emt 0:01:36]} Rg7 {[%emt 0:06:08]} 31. Bg4 {[%emt 0:02:42]} Nf6
{[%emt 0:03:15]} 32. Rxf6 {[%emt 0:02:42]} Qxf6 {[%emt 0:01:18]} 33. Nh5 {
[%emt 0:00:15]} Rxh5 {[%emt 0:00:38]} 34. Bxh5 {[%emt 0:00:09]} Qh6 {[%emt 0:
00:00]} 35. Bg4 {[%emt 0:00:16]} f6 {[%emt 0:01:23]} 36. b5 {[%emt 0:01:29]}
Re7 {[%emt 0:00:44]} 37. Rc3 {[%emt 0:02:25]} Ke8 {[%emt 0:02:28]} 38. Qc2 {
[%emt 0:08:06]} Qf8 {[%emt 0:04:53]} 39. Qa4 {[%emt 0:01:06]} Kf7 {[%emt 0:00:
00]} 40. Bh5+ {[%emt 0:07:13]} Kg8 {[%emt 0:02:20]} 41. Bg4 {[%emt 0:30:37]}
Kg7 {[%emt 0:30:55]} 42. Bf5 {[%emt 0:00:28]} Kh8 {[%emt 0:01:52]} 43. Qxa7 {
[%emt 0:08:19]} Bxd5 {[%emt 0:00:00]} 44. Qxb6 {[%emt 0:00:00]} Bb7 {[%emt 0:
00:00]} 45. Rc7 {[%emt 0:00:00]} Rxc7 {[%emt 0:00:00]} 46. Qxc7 {[%emt 0:00:00]
} 1-0